fUST/lending_fUST_20250719
["ID","MTS","AMOUNT","RATE_DAILY","PERIOD"]
[373278023,1752927062967,-484.39,0.00020292,2]
[373278024,1752927062976,-460.0,0.00020292,2]
[373278026,1752927062986,-1935.27,0.00020292,2]
[373278028,1752927062995,-989.97,0.00020292,2]
[373278030,1752927063005,-460.0,0.00020292,2]
[373278032,1752927063015,-978.7,0.00020292,2]
[373278035,1752927063026,-460.0,0.00020292,2]
[373278037,1752927063037,-460.0,0.00020292,2]
[373278039,1752927063047,-460.0,0.00020292,2]
[373278041,1752927063058,-521.57,0.00020292,2]
[373278043,1752927063069,-460.0,0.00020293,2]
[373278045,1752927063081,-460.0,0.00020293,2]
[373278047,1752927063091,-460.0,0.00020293,2]
[373278048,1752927063102,-460.0,0.00020293,2]
[373278051,1752927063113,-344.111953,0.00020293,2]
[373278052,1752927063123,-460.0,0.00020293,2]
[373278054,1752927063134,-460.0,0.00020293,2]
[373278057,1752927063144,-460.0,0.00020293,2]
[373278058,1752927063154,-151.0,0.00020293,2]
[373278061,1752927063164,-460.0,0.00020293,2]
[373278063,1752927063175,-594.06,0.00020293,2]
[373278065,1752927063185,-460.0,0.00020293,2]
[373278066,1752927063194,-606.87,0.00020293,2]
[373278069,1752927063207,-578.82,0.00020293,2]
[373278071,1752927063217,-240.06681902,0.00020293,2]
[373278073,1752927063227,-460.0,0.00020293,2]
[373278075,1752927063237,-460.0,0.00020293,2]
[373278077,1752927063246,-460.0,0.00020293,2]
[373278079,1752927063256,-460.0,0.00020293,2]
[373278081,1752927063265,-2812.62,0.00020293,2]
[373278083,1752927063275,-460.0,0.00020293,2]
[373278085,1752927063285,-460.0,0.00020293,2]
[373278087,1752927063294,-1695.29,0.00020294,2]
[373278089,1752927063304,-460.0,0.00020294,2]
[373278090,1752927063313,-1501.2,0.00020294,2]
[373278092,1752927063322,-1105.49,0.00020294,2]
[373278094,1752927063332,-571.41,0.00020294,2]
[373278096,1752927063342,-1573.16,0.00020294,2]
[373278098,1752927063352,-460.0,0.00020294,2]
[373278101,1752927063362,-1549.28,0.00020294,2]
[373278102,1752927063372,-151.0,0.00020302,2]
[373278105,1752927063381,-151.255532,0.00020302,2]
[373278106,1752927063391,-151.0,0.00020302,2]
[373278109,1752927063401,-151.0,0.00020302,2]
[373278111,1752927063410,-151.0,0.00020302,2]
[373278112,1752927063420,-1000.0,0.00020335,2]
[373278115,1752927063430,-460.0,0.00020393,2]
[373278117,1752927063440,-771.83,0.00020395,2]
[373278119,1752927063451,-12612.80205064,0.000204,3]
[373278121,1752927063461,-151.0,0.000204,2]
[373278123,1752927063470,-160.0,0.000204,3]
[373278125,1752927063480,-476.34170116,0.000204,3]
[373278127,1752927063491,-214.52603969,0.000204,3]
[373278129,1752927063501,-705.18445603,0.00020457,5]
[373278131,1752927063510,-1000.0,0.00020468,2]
[373278133,1752927063520,-5819.01530007,0.00020486,3]
[373278134,1752927063529,-153.0,0.00020521,2]
[373278137,1752927063539,-153.0,0.00020521,2]
[373278138,1752927063548,-153.0,0.00020521,2]
[373278141,1752927063558,-151.0,0.00020537,2]
[373278143,1752927063568,-151.0,0.00020547,2]
[373278145,1752927063579,-500.0,0.00020547,2]
[373278147,1752927063590,-500.0,0.00020547,2]
[373278149,1752927063600,-500.0,0.00020547,2]
[373278151,1752927063609,-500.0,0.00020547,2]
[373278153,1752927063620,-500.0,0.00020547,2]
[373278155,1752927063630,-500.0,0.00020547,2]
[373278157,1752927063640,-500.0,0.00020547,2]
[373278159,1752927063649,-500.0,0.00020547,2]
[373278161,1752927063660,-500.0,0.00020547,2]
[373278163,1752927063670,-500.0,0.00020547,2]
[373278165,1752927063679,-500.0,0.00020547,2]
[373278167,1752927063689,-500.0,0.00020547,2]
[373278168,1752927063697,-500.0,0.00020547,2]
[373278170,1752927063711,-1226.27,0.00020565,2]
[373278172,1752927063721,-3070.5,0.00020565,2]
[373278175,1752927063732,-460.0,0.00020566,2]
[373278177,1752927063743,-3208.37,0.00020566,2]
[373278179,1752927063753,-484.39,0.00020566,2]
[373278181,1752927063762,-460.0,0.00020566,2]
[373278183,1752927063772,-1935.27,0.00020566,2]
[373278185,1752927063784,-989.97,0.00020566,2]
[373278187,1752927063794,-579.8,0.00020566,2]
[373278189,1752927063804,-978.7,0.00020566,2]
[373278191,1752927063813,-170.59,0.00020566,2]
[373278193,1752927063823,-151.0,0.00020566,2]
[373278195,1752927063832,-460.0,0.00020566,2]
[373278197,1752927063841,-217.34,0.00020566,2]
[373278199,1752927063850,-521.57,0.00020566,2]
[373278201,1752927063860,-460.0,0.00020567,2]
[373278203,1752927063871,-462.87,0.00020567,2]
[373278205,1752927063881,-460.0,0.00020567,2]
[373278207,1752927063890,-460.0,0.00020567,2]
[373278209,1752927063901,-460.0,0.00020567,2]
[373278211,1752927063911,-460.0,0.00020567,2]
[373278213,1752927063922,-594.06,0.00020567,2]
[373278215,1752927063931,-460.0,0.00020567,2]
[373278217,1752927063942,-578.82,0.00020567,2]
[373278219,1752927063956,-460.0,0.00020567,2]
[373278221,1752927063966,-460.0,0.00020567,2]
[373278223,1752927063976,-460.0,0.00020567,2]
[373278225,1752927063988,-460.0,0.00020567,2]
[373278227,1752927063998,-2812.62,0.00020567,2]
[373278229,1752927064009,-304.02,0.00020567,2]
[373278231,1752927064019,-1695.29,0.00020568,2]
[373278233,1752927064029,-541.23,0.00020568,2]
[373278235,1752927064050,-1501.2,0.00020568,2]
[373278237,1752927064061,-1105.49,0.00020568,2]
[373278239,1752927064071,-571.41,0.00020568,2]
[373278241,1752927064082,-1573.16,0.00020568,2]
[373278243,1752927064092,-460.0,0.00020568,2]
[373278246,1752927064102,-1549.28,0.00020568,2]
[373278247,1752927064112,-250.0,0.00020614,2]
[373278249,1752927064123,-230.394089,0.0002063,3]
[373278252,1752927064134,-460.0,0.00020667,2]
[373278263,1752927064249,-771.83,0.00020669,2]
[373278265,1752927064260,-1003.17903582,0.00020688,2]
[373278267,1752927064270,-5819.01530007,0.00020762,3]
[373278269,1752927064280,-224.2,0.0002077,2]
[373278271,1752927064289,-536.71,0.00020813,2]
[373278273,1752927064299,-503.5032217,0.00020834,2]
[373278275,1752927064308,-1226.27,0.00020839,2]
[373278277,1752927064318,-3070.5,0.00020839,2]
[373278279,1752927064329,-3208.37,0.0002084,2]
[373278281,1752927064338,-484.39,0.0002084,2]
[373278283,1752927064348,-460.0,0.0002084,2]
[373278285,1752927064357,-1935.27,0.0002084,2]
[373278287,1752927064366,-989.97,0.0002084,2]
[373278289,1752927064376,-978.7,0.0002084,2]
[373278291,1752927064386,-460.0,0.0002084,2]
[373278293,1752927064396,-521.57,0.0002084,2]
[373278295,1752927064406,-460.0,0.00020841,2]
[373278297,1752927064416,-460.0,0.00020841,2]
[373278300,1752927064426,-151.57,0.00020841,2]
[373278302,1752927064436,-460.0,0.00020841,2]
[373278303,1752927064447,-460.0,0.00020841,2]
[373278305,1752927064458,-594.06,0.00020841,2]
[373278307,1752927064468,-460.0,0.00020841,2]
[373278310,1752927064479,-578.82,0.00020841,2]
[373278312,1752927064489,-460.0,0.00020841,2]
[373278314,1752927064498,-460.0,0.00020841,2]
[373278316,1752927064509,-460.0,0.00020841,2]
[373278318,1752927064518,-460.0,0.00020841,2]
[373278320,1752927064528,-2812.62,0.00020841,2]
[373278322,1752927064538,-1695.29,0.00020842,2]
[373278324,1752927064548,-1501.2,0.00020842,2]
[373278326,1752927064558,-1105.49,0.00020842,2]
[373278328,1752927064569,-571.41,0.00020842,2]
[373278330,1752927064585,-1573.16,0.00020842,2]
[373278332,1752927064594,-460.0,0.00020842,2]
[373278334,1752927064604,-1549.28,0.00020842,2]
[373278336,1752927064615,-884.0,0.0002085,2]
[373278338,1752927064624,-151.0,0.00020859,2]
[373278340,1752927064634,-188.673504,0.00020859,2]
[373278342,1752927064643,-188.673504,0.00020859,2]
[373278343,1752927064653,-500.0,0.00020883,2]
[373278345,1752927064663,-151.0,0.000209,3]
[373278347,1752927064673,-151.0,0.00020907,2]
[373278349,1752927064682,-151.0,0.00020907,2]
[373278351,1752927064692,-257.403127,0.00020907,2]
[373278353,1752927064703,-884.0,0.00020907,2]
[373278356,1752927064713,-460.0,0.00020941,2]
[373278357,1752927064723,-771.83,0.00020943,2]
[373278360,1752927064733,-230.394089,0.00020946,2]
[373278362,1752927064743,-884.0,0.00020998,2]
[373278364,1752927064754,-1370.4,0.00021,2]
[373278366,1752927064763,-3145.224935,0.00021,2]
[373278368,1752927064772,-884.0,0.00021015,2]
[373278369,1752927064782,-884.0,0.00021018,2]
[373278372,1752927064791,-151.0,0.00021019,2]
[373278374,1752927064803,-600.0,0.00021033,2]
[373278376,1752927064812,-5819.01530007,0.00021038,4]
[373278378,1752927064822,-151.0,0.000211,2]
[373278380,1752927064832,-642.0,0.000211,2]
[373278382,1752927064842,-151.0,0.00021101,2]
[373278384,1752927064853,-1226.27,0.00021113,2]
[373278386,1752927064863,-3070.5,0.00021113,2]
[373278388,1752927064873,-3208.37,0.00021114,2]
[373278390,1752927064883,-484.39,0.00021114,2]
[373278392,1752927064892,-460.0,0.00021114,2]
[373278394,1752927064902,-1935.27,0.00021114,2]
[373278396,1752927064912,-989.97,0.00021114,2]
[373278398,1752927064921,-978.7,0.00021114,2]
[373278400,1752927064932,-460.0,0.00021114,2]
[373278402,1752927064941,-521.57,0.00021114,2]
[373278404,1752927064951,-460.0,0.00021115,2]
[373278406,1752927064962,-460.0,0.00021115,2]
[373278408,1752927064972,-460.0,0.00021115,2]
[373278410,1752927064982,-594.06,0.00021115,2]
[373278412,1752927064991,-460.0,0.00021115,2]
[373278415,1752927065002,-578.82,0.00021115,2]
[373278417,1752927065011,-460.0,0.00021115,2]
[373278419,1752927065021,-460.0,0.00021115,2]
[373278421,1752927065031,-460.0,0.00021115,2]
[373278423,1752927065041,-460.0,0.00021115,2]
[373278425,1752927065051,-2812.62,0.00021115,2]
[373278427,1752927065060,-1695.29,0.00021116,2]
[373278429,1752927065070,-1501.2,0.00021116,2]
[373278431,1752927065079,-1105.49,0.00021116,2]
[373278432,1752927065089,-571.41,0.00021116,2]
[373278434,1752927065100,-1573.16,0.00021116,2]
[373278437,1752927065110,-460.0,0.00021116,2]
[373278439,1752927065120,-1549.28,0.00021116,2]
[373278441,1752927065130,-884.0,0.00021179,2]
[373278443,1752927065139,-460.0,0.00021215,2]
[373278445,1752927065149,-771.83,0.00021217,2]
[373278447,1752927065159,-180.548408,0.00021245,2]
[373278449,1752927065168,-884.0,0.00021264,2]
[373278450,1752927065177,-5819.01530007,0.00021314,5]
[373278452,1752927065186,-153.0,0.00021342,2]
[373278454,1752927065195,-153.0,0.00021342,2]
[373278456,1752927065205,-884.0,0.00021352,2]
[373278458,1752927065214,-884.0,0.00021358,2]
[373278460,1752927065224,-884.0,0.00021368,2]
[373278462,1752927065233,-1226.27,0.00021387,2]
[373278464,1752927065243,-3070.5,0.00021387,2]
[373278466,1752927065253,-3208.37,0.00021388,2]
[373278468,1752927065263,-484.39,0.00021388,2]
[373278470,1752927065272,-460.0,0.00021388,2]
[373278472,1752927065282,-1935.27,0.00021388,2]
[373278474,1752927065291,-989.97,0.00021388,2]
[373278476,1752927065300,-978.7,0.00021388,2]
[373278478,1752927065310,-276.11,0.00021388,2]
[373278480,1752927065320,-521.57,0.00021388,2]
[373278482,1752927065330,-236.70578808,0.00021389,2]
[373278484,1752927065339,-151.0,0.00021389,2]
[373278486,1752927065349,-179.000455,0.00021389,2]
[373278488,1752927065358,-179.000455,0.00021389,2]
[373278490,1752927065368,-951.403261,0.00021389,2]
[373278492,1752927065377,-951.403261,0.00021389,2]
[373278494,1752927065386,-180.29,0.00021389,2]
[373278496,1752927065396,-460.0,0.00021389,2]
[373278498,1752927065407,-594.06,0.00021389,2]
[373278500,1752927065416,-460.0,0.00021389,2]
[373278502,1752927065426,-578.82,0.00021389,2]
[373278504,1752927065436,-460.0,0.00021389,2]
[373278506,1752927065445,-460.0,0.00021389,2]
[373278507,1752927065456,-410.8147832,0.00021389,2]
[373278509,1752927065466,-460.0,0.00021389,2]
[373278511,1752927065476,-2812.62,0.00021389,2]
[373278513,1752927065486,-151.0,0.0002139,2]
[373278515,1752927065496,-1695.29,0.0002139,2]
[373278517,1752927065507,-1501.2,0.0002139,2]
[373278519,1752927065516,-1105.49,0.0002139,2]
[373278521,1752927065526,-571.41,0.0002139,2]
[373278523,1752927065539,-1573.16,0.0002139,2]
[373278525,1752927065554,-460.0,0.0002139,2]
[373278527,1752927065564,-1549.28,0.0002139,2]
[373278529,1752927065573,-151.0,0.000214,2]
[373278531,1752927065586,-223.0315306,0.00021466,2]
[373278533,1752927065595,-460.0,0.00021489,2]
[373278535,1752927065606,-771.83,0.00021491,2]
[373278537,1752927065616,-151.0,0.00021491,2]
[373278539,1752927065626,-884.0,0.00021504,2]
[373278541,1752927065636,-230.394089,0.00021554,3]
[373278543,1752927065645,-677.682365,0.0002156,8]
[373278545,1752927065657,-1500.0,0.00021564,2]
[373278546,1752927065666,-884.0,0.00021578,2]
[373278548,1752927065675,-5819.01530007,0.0002159,5]
[373278550,1752927065685,-1226.27,0.00021661,2]
[373278552,1752927065695,-3070.5,0.00021661,2]
[373278554,1752927065706,-3208.37,0.00021662,2]
[373278556,1752927065716,-484.39,0.00021662,2]
[373278558,1752927065725,-460.0,0.00021662,2]
[373278560,1752927065735,-1935.27,0.00021662,2]
[373278562,1752927065745,-989.97,0.00021662,2]
[373278564,1752927065754,-978.7,0.00021662,2]
[373278566,1752927065764,-151.0,0.00021662,2]
[373278568,1752927065773,-521.57,0.00021662,2]
[373278570,1752927065783,-460.0,0.00021663,2]
[373278572,1752927065792,-594.06,0.00021663,2]
[373278574,1752927065801,-460.0,0.00021663,2]
[373278576,1752927065811,-578.82,0.00021663,2]
[373278578,1752927065821,-460.0,0.00021663,2]
[373278580,1752927065831,-460.0,0.00021663,2]
[373278582,1752927065840,-460.0,0.00021663,2]
[373278584,1752927065850,-2812.62,0.00021663,2]
[373278586,1752927065859,-1695.29,0.00021664,2]
[373278588,1752927065869,-1501.2,0.00021664,2]
[373278589,1752927065878,-1105.49,0.00021664,2]
[373278590,1752927065888,-571.41,0.00021664,2]
[373278591,1752927065896,-1573.16,0.00021664,2]
[373278592,1752927065905,-460.0,0.00021664,2]
[373278593,1752927065914,-1549.28,0.00021664,2]
[373278594,1752927065924,-11254.10257877,0.00021665,2]
[373278595,1752927065933,-151.0,0.00021665,2]
[373278596,1752927065943,-7103.83397184,0.00021705,2]
[373278597,1752927065951,-884.0,0.00021718,2]
[373278598,1752927065962,-884.0,0.00021734,2]
[373278599,1752927065972,-884.0,0.00021753,2]
[373278600,1752927065981,-460.0,0.00021763,2]
[373278601,1752927065989,-151.0,0.00021764,2]
[373278602,1752927065999,-151.0,0.00021764,2]
[373278603,1752927066007,-151.0,0.00021764,2]
[373278604,1752927066017,-771.83,0.00021765,2]
[373278605,1752927066026,-884.0,0.00021765,2]
[373278606,1752927066035,-198.67952302,0.00021769,2]
[373278607,1752927066044,-198.99342437,0.00021769,2]
[373278608,1752927066054,-500.0,0.00021769,2]
[373278609,1752927066062,-151.0,0.00021769,2]
[373278610,1752927066072,-151.0,0.00021769,2]
[373278611,1752927066081,-151.0,0.00021769,2]
[373278612,1752927066090,-500.0,0.00021769,2]
[373278613,1752927066099,-500.0,0.00021769,2]
[373278614,1752927066109,-151.0,0.00021769,2]
[373278615,1752927066117,-39.57730362,0.00021769,2]
[373278625,1752927066352,-111.42269638,0.00021769,2]
[373278627,1752927066362,-198.48413191,0.00021769,2]
[373278629,1752927066372,-500.0,0.00021769,2]
[373278631,1752927066382,-260.21401573,0.00021769,2]
[373278633,1752927066392,-153.27205823,0.00021769,2]
[373278635,1752927066402,-500.0,0.00021769,2]
[373278637,1752927066411,-151.0,0.00021769,2]
[373278639,1752927066421,-151.0,0.00021769,2]
[373278641,1752927066431,-133.25758078,0.00021769,2]
[373278643,1752927066443,-17.74241922,0.00021769,2]
[373278645,1752927066455,-445.67799349,0.00021769,2]
[373278648,1752927066467,-54.32200651,0.00021769,2]
[373278650,1752927066476,-211.12151948,0.00021769,2]
[373278652,1752927066486,-500.0,0.00021769,2]
[373278654,1752927066495,-151.0,0.00021769,2]
[373278655,1752927066505,-151.0,0.00021769,2]
[373278657,1752927066514,-518.96747951,0.0002178,5]
[373278660,1752927066526,-1130.77446522,0.0002178,5]
[373278679,1752927066718,-500.0,0.00016727,2]
[373278681,1752927066729,-460.0,0.00016731,2]
[373278683,1752927066738,-85.36510411,0.00017005,2]
[373278686,1752927066753,-374.63489589,0.00017005,2]
[373278688,1752927066762,-250.6523242,0.00017279,2]
[373278690,1752927066772,-829.12,0.00019745,2]
[373278692,1752927066781,-580.16,0.00020017,2]
[373278694,1752927066791,-829.12,0.00020019,2]
[373278696,1752927066800,-829.12,0.00020293,2]
[373278698,1752927066809,-829.12,0.00020567,2]
[373278700,1752927066819,-829.12,0.00020841,2]
[373278702,1752927066828,-829.12,0.00021115,2]
[373278704,1752927066837,-120.42207627,0.0002178,5]
[373278706,1752927066847,-1000.0,0.000218,5]
[373278707,1752927066856,-1000.0,0.0002182,5]
[373278709,1752927066865,-884.0,0.00021823,2]
[373278711,1752927066874,-1000.0,0.0002184,5]
[373278713,1752927066883,-1000.0,0.0002186,5]
[373278715,1752927066893,-5819.01530007,0.00021866,6]
[373278717,1752927066902,-580.60691988,0.0002188,5]
[373278720,1752927066916,-419.39308012,0.0002188,5]
[373278722,1752927066925,-383.0053623,0.000219,2]
[373278723,1752927066935,-1000.0,0.000219,5]
[373278725,1752927066944,-151.0,0.00021916,2]
[373278727,1752927066953,-151.0,0.00021916,2]
[373278729,1752927066963,-239.870801,0.00021918,2]
[373278731,1752927066973,-151.0,0.00021918,2]
[373278733,1752927066984,-151.0,0.00021918,2]
[373278735,1752927066993,-151.0,0.00021918,2]
[373278737,1752927067003,-151.0,0.00021918,2]
[373278739,1752927067012,-151.0,0.00021918,2]
[373278741,1752927067022,-151.0,0.00021918,2]
[373278743,1752927067031,-151.0,0.00021918,2]
[373278745,1752927067041,-151.0,0.00021918,2]
[373278747,1752927067050,-151.0,0.00021918,2]
[373278749,1752927067060,-151.0,0.00021918,2]
[373278751,1752927067069,-293.59111184,0.00021918,2]
[373278753,1752927067079,-150.0,0.00021918,2]
[373278755,1752927067088,-150.0,0.00021918,2]
[373278757,1752927067098,-200.0,0.00021918,2]
[373278759,1752927067108,-1000.0,0.0002192,5]
[373278761,1752927067118,-1226.27,0.00021935,2]
[373278763,1752927067127,-3070.5,0.00021935,2]
[373278764,1752927067137,-460.0,0.00021936,2]
[373278766,1752927067147,-3208.37,0.00021936,2]
[373278768,1752927067156,-184.28313145,0.00021936,2]
[373278771,1752927067170,-409.77686855,0.00021936,2]
[373278773,1752927067180,-484.39,0.00021936,2]
[373278775,1752927067190,-460.0,0.00021936,2]
[373278776,1752927067199,-460.0,0.00021936,2]
[373278778,1752927067211,-1935.27,0.00021936,2]
[373278780,1752927067221,-578.82,0.00021936,2]
[373278782,1752927067230,-989.97,0.00021936,2]
[373278784,1752927067239,-978.7,0.00021936,2]
[373278786,1752927067249,-460.0,0.00021936,2]
[373278788,1752927067258,-460.0,0.00021936,2]
[373278790,1752927067268,-367.75,0.00021936,2]
[373278792,1752927067278,-2812.62,0.00021936,2]
[373278794,1752927067287,-521.57,0.00021936,2]
[373278796,1752927067296,-1695.29,0.00021938,2]
[373278798,1752927067305,-1501.2,0.00021938,2]
[373278800,1752927067315,-1105.49,0.00021938,2]
[373278802,1752927067325,-571.41,0.00021938,2]
[373278803,1752927067334,-1573.16,0.00021938,2]
[373278804,1752927067345,-460.0,0.00021938,2]
[373278805,1752927067355,-1549.28,0.00021938,2]
[373278806,1752927067364,-1000.0,0.0002194,5]
[373278807,1752927067373,-1000.0,0.0002196,5]
[373278808,1752927067383,-500.0,0.00021973,2]
[373278809,1752927067392,-1000.0,0.0002198,5]
[373278810,1752927067401,-8214.41208522,0.00022,2]
[373278811,1752927067413,-18096.57816371,0.00022,2]
[373278812,1752927067423,-160.0,0.00022,7]
[373278813,1752927067432,-313.23,0.00022,4]
[373278814,1752927067441,-2414.43,0.00022,7]
[373278815,1752927067451,-1000.0,0.00022,2]
[373278816,1752927067462,-30208.73255,0.00022,14]
[373278817,1752927067472,-161.83540056,0.00022,2]
[373278818,1752927067481,-14842.11,0.00022,7]
[373278819,1752927067491,-5774.55,0.00022,7]
[373278820,1752927067500,-151.0,0.00022,7]
[373278821,1752927067509,-151.0,0.00022,7]
[373278822,1752927067519,-151.0,0.00022,7]
[373278823,1752927067529,-151.0,0.00022,7]
[373278824,1752927067538,-1000.0,0.00022,5]
[373278826,1752927067547,-188.673504,0.00022,7]
[373278828,1752927067556,-188.673504,0.00022,7]
[373278829,1752927067565,-230.394089,0.00022,5]
[373278831,1752927067575,-151.0,0.00022,7]
[373278833,1752927067588,-151.0,0.00022,2]
[373278835,1752927067598,-12612.80205064,0.00022,7]
[373278837,1752927067607,-199.3334,0.00022,2]
[373278839,1752927067617,-151.0,0.00022,7]
[373278841,1752927067628,-476.34170116,0.00022,7]
[373278843,1752927067637,-214.52603969,0.00022,7]
[373278845,1752927067646,-206.0,0.0002201,2]
[373278847,1752927067657,-460.0,0.00022037,2]
[373278849,1752927067671,-151.0,0.00022039,7]
[373278851,1752927067692,-179.000455,0.00022039,7]
[373278853,1752927067713,-179.000455,0.00022039,7]
[373278855,1752927067736,-31.15725339,0.00022039,7]
[373278857,1752927067764,-920.24600761,0.00022039,7]
[373278859,1752927067787,-951.403261,0.00022039,7]
[373278861,1752927067811,-771.83,0.00022039,2]
[373278863,1752927067835,-151.0,0.00022039,7]
[373278865,1752927067857,-500.0,0.00022043,2]
[373278867,1752927067876,-269.81533992,0.00022043,2]
[373278869,1752927067886,-199.41888523,0.00022043,2]
[373278871,1752927067896,-253.00556288,0.00022043,2]
[373278873,1752927067906,-500.0,0.00022043,2]
[373278875,1752927067915,-500.0,0.00022043,2]
[373278877,1752927067924,-151.0,0.00022043,2]
[373278879,1752927067934,-151.0,0.00022043,2]
[373278881,1752927067943,-641.0,0.00022043,2]
[373278883,1752927067953,-624.11865944,0.00022043,2]
[373278885,1752927067965,-151.0,0.00022043,2]
[373278887,1752927067974,-500.0,0.00022043,2]
[373278889,1752927067984,-500.0,0.00022043,2]
[373278891,1752927067994,-248.32432582,0.00022043,2]
[373278893,1752927068003,-151.0,0.00022043,7]
[373278895,1752927068012,-2925.0,0.000221,4]
[373278897,1752927068021,-600.0,0.00022129,2]
[373278899,1752927068031,-230.394089,0.00022141,6]
[373278901,1752927068040,-116.01959095,0.00022141,6]
[373278903,1752927068051,-469.47107365,0.00022141,6]
[373278906,1752927068062,-5233.52463547,0.00022141,6]
[373278908,1752927068072,-884.0,0.00022155,2]
[373278910,1752927068081,-884.0,0.00022167,2]
[373278912,1752927068090,-151.0,0.00022176,7]
[373278914,1752927068099,-151.0,0.00022176,7]
[373278916,1752927068108,-161.83540056,0.00022192,2]
[373278918,1752927068118,-1226.27,0.00022209,2]
[373278920,1752927068128,-3070.5,0.00022209,2]
[373278922,1752927068138,-460.0,0.0002221,2]
[373278924,1752927068148,-3208.37,0.0002221,2]
[373278926,1752927068157,-594.06,0.0002221,2]
[373278928,1752927068168,-484.39,0.0002221,2]
[373278930,1752927068177,-365.08,0.0002221,2]
[373278932,1752927068187,-460.0,0.0002221,2]
[373278934,1752927068197,-1935.27,0.0002221,2]
[373278936,1752927068207,-578.82,0.0002221,2]
[373278938,1752927068217,-989.97,0.0002221,2]
[373278940,1752927068227,-978.7,0.0002221,2]
[373278942,1752927068236,-357.12852091,0.0002221,2]
[373278944,1752927068248,-102.87147909,0.0002221,2]
[373278946,1752927068257,-181.44,0.0002221,2]
[373278948,1752927068267,-2812.62,0.0002221,2]
[373278961,1752927068379,-521.57,0.0002221,2]
[373278963,1752927068389,-1104.85349877,0.00022212,2]
[373278965,1752927068401,-590.43650123,0.00022212,2]
[373278967,1752927068409,-964.76188881,0.00022212,2]
[373278998,1752927068699,-777.17506577,0.00016729,2]
[373279000,1752927068713,-331.28493423,0.00016729,2]
[373279002,1752927068723,-99.86506577,0.00016729,2]
[373279005,1752927068735,-360.13493423,0.00016729,2]
[373279007,1752927068744,-102.62201761,0.0001673,2]
[373279009,1752927068756,-357.37798239,0.0001673,2]
[373279011,1752927068766,-460.0,0.00016731,2]
[373279013,1752927068775,-460.0,0.00016731,2]
[373279015,1752927068784,-460.0,0.00016731,2]
[373279017,1752927068794,-1108.46,0.00017003,2]
[373279019,1752927068803,-460.0,0.00017003,2]
[373279021,1752927068813,-460.0,0.00017004,2]
[373279023,1752927068822,-460.0,0.00017005,2]
[373279025,1752927068831,-460.0,0.00017005,2]
[373279027,1752927068841,-460.0,0.00017005,2]
[373279029,1752927068850,-568.67235969,0.00017277,2]
[373279032,1752927068864,-539.78764031,0.00017277,2]
[373279034,1752927068873,-460.0,0.00017277,2]
[373279036,1752927068883,-460.0,0.00017279,2]
[373279038,1752927068893,-1108.46,0.00017551,2]
[373279040,1752927068901,-460.0,0.00017551,2]
[373279042,1752927068911,-301.38898646,0.00017553,2]
[373279044,1752927068921,-1108.46,0.00017825,2]
[373279046,1752927068930,-460.0,0.00017825,2]
[373279048,1752927068939,-1108.46,0.00018099,2]